bitfinex-derivatives/quotes_ETHF0:USTF0_20250116
["timestamp","ask_amount","ask_price","bid_price","bid_amount"]
[1737017439543,3.2078,3311.4,3310.6,3.2078]
[1737017439844,0.60418,3310.8,3309.8,0.60434]
[1737017440040,6.50207865,3310.7,3310.2,0.22167475]
[1737017440240,3.2078,3310.3,3310.2,0.22167475]
[1737017440435,3.2078,3310.9,3310.2,0.22167475]
[1737017440838,6.59768459,3311.3,3310.9,0.60415]
[1737017441036,6.59768459,3311.3,3310.2,1.89567475]
[1737017441037,3.2078,3311.3,3310.8,0.60416]
[1737017441238,3.2078,3311.3,3310.3,3.2078]
[1737017441544,4.77747865,3311.7,3310.2,3.42947475]
[1737017441545,3.2078,3310.9,3310.2,3.42947475]
[1737017441848,2.90580107,3310.9,3310.8,0.60417]
[1737017442145,2.90580107,3310.9,3310.3,0.60424]
[1737017442346,2.90580107,3310.9,3310.2,3.42947475]
[1737017442347,2.90580107,3310.9,3310.4,0.60423]
[1737017442643,2.90580107,3310.9,3310.2,3.42947475]
[1737017443041,3.22260827,3310.8,3310.2,3.2078]
[1737017443348,3.2078,3310.5,3310.0,0.60431]
[1737017443642,3.2078,3310.5,3309.7,3.2078]
[1737017443836,3.2078,3310.5,3310.4,0.60424]
[1737017444042,3.2078,3310.5,3309.7,3.2078]
[1737017444239,3.81203,3310.5,3309.8,0.60435]
[1737017444435,3.2078,3310.0,3309.4,0.60442]
[1737017444739,3.2078,3310.0,3309.9,0.60433]
[1737017444934,3.2078,3310.0,3309.3,1.5399]
[1737017445138,3.2078,3310.0,3309.4,0.60442]
[1737017445343,3.2078,3310.0,3309.7,0.60437]
[1737017445539,3.2078,3310.0,3309.3,1.5399]
[1737017446246,3.81212,3310.0,3309.3,0.60443]
[1737017446437,3.37375981,3309.9,3309.2,14.0808]
[1737017446640,3.2078,3310.0,3309.2,3.2078]
[1737017446946,3.2078,3310.0,3309.9,0.60433]
[1737017447736,3.2078,3310.0,3309.2,3.2078]
[1737017448049,3.2078,3310.0,3309.1,0.60447]
[1737017448050,3.2078,3309.6,3309.1,0.60447]
[1737017448346,3.2078,3309.6,3309.2,0.60445]
[1737017448542,3.2078,3309.6,3309.5,0.60441]
[1737017448941,3.2078,3309.6,3308.9,1.674]
[1737017449141,3.2078,3309.6,3309.4,0.60442]
[1737017449340,3.2078,3309.6,3308.9,1.674]
[1737017449543,3.2078,3309.6,3309.5,0.60441]
[1737017449751,3.2078,3309.6,3308.9,1.674]
[1737017450048,3.2078,3309.6,3309.5,0.60441]
[1737017450240,3.2078,3310.0,3309.4,0.60442]
[1737017450443,3.81212,3310.0,3309.3,0.60444]
[1737017450644,3.2078,3310.0,3309.1,0.60447]
[1737017450839,3.2078,3309.5,3308.9,1.674]
[1737017451145,3.2078,3309.5,3309.1,0.60446]
[1737017451446,3.2078,3309.5,3309.0,0.60449]
[1737017451752,3.2078,3309.5,3309.3,0.60443]
[1737017451952,3.2078,3309.5,3308.7,3.725]
[1737017452245,3.2078,3309.5,3309.2,0.60445]
[1737017452443,3.2078,3309.5,3309.1,0.60447]
[1737017452645,3.2078,3309.5,3308.7,3.725]
[1737017452849,3.2078,3309.5,3308.8,1.675]
[1737017453248,3.2078,3309.5,3309.1,0.60448]
[1737017454448,3.2078,3309.5,3308.8,1.675]
[1737017454742,3.2078,3309.9,3309.4,0.60441]
[1737017454945,3.2078,3310.1,3309.0,3.2078]
[1737017455145,3.2078,3309.6,3309.1,0.60446]
[1737017455741,3.2078,3309.6,3309.2,0.60446]
[1737017455941,3.8122,3309.6,3309.0,0.60449]
[1737017456141,3.2078,3309.6,3308.7,3.696]
[1737017456349,3.2078,3309.6,3309.3,0.60444]
[1737017456541,3.2078,3309.6,3308.7,3.696]
[1737017456742,3.2078,3309.6,3309.2,0.60446]
[1737017457341,3.2078,3309.6,3308.8,0.60453]
[1737017457539,3.2078,3309.6,3309.1,0.60447]
[1737017458344,3.2078,3309.6,3308.7,2.05]
[1737017458545,3.2078,3309.6,3308.8,3.2078]
[1737017458745,2.2088,3310.0,3309.6,0.60437]
[1737017458939,2.2088,3310.0,3308.5,1.51145]
[1737017458940,3.2078,3309.7,3308.4,3.2078]
[1737017459151,3.81222,3309.5,3309.0,0.60449]
[1737017459351,3.2078,3309.5,3308.4,3.2078]
[1737017459651,3.2078,3309.5,3308.9,0.60451]
[1737017459846,3.2078,3309.5,3308.4,3.2078]
[1737017460150,3.2078,3309.5,3308.8,3.2078]
[1737017460345,3.2078,3309.5,3309.3,0.60443]
[1737017460553,5.3759,3310.4,3309.3,4.8538]
[1737017460746,5.3759,3310.4,3309.9,0.60432]
[1737017460942,3.2078,3310.4,3309.4,4.481]
[1737017461246,3.2078,3310.8,3310.1,3.2078]
[1737017461444,3.2078,3310.8,3310.7,0.60419]
[1737017461649,3.2078,3311.5,3310.5,3.2078]
[1737017461859,2.24843095,3311.7,3310.9,3.2078]
[1737017462052,3.2078,3312.0,3311.0,0.60413]
[1737017462353,3.2078,3312.4,3311.4,3.2078]
[1737017462946,3.2078,3312.4,3311.5,44.0078]
[1737017463149,0.60409,3311.3,3310.8,3.2078]
[1737017463458,0.60409,3311.3,3310.8,0.60417]
[1737017463459,3.2078,3311.3,3310.8,0.60417]
[1737017463748,1.50976,3312.3,3310.1,3.2078]
[1737017463749,3.2078,3310.9,3310.1,3.2078]
[1737017463957,3.2078,3310.5,3309.9,0.60432]
[1737017464248,3.2078,3310.0,3309.3,2.1853]
[1737017464452,3.2078,3309.5,3308.7,3.2078]
[1737017464764,3.2078,3309.5,3308.3,3.2078]
[1737017465053,3.81222,3309.5,3308.4,0.6046]
[1737017465248,3.81222,3309.5,3308.3,3.2078]
[1737017465548,3.2078,3309.5,3308.3,3.2078]
[1737017465848,3.2078,3309.5,3308.4,1.51152]
[1737017466152,3.2078,3309.7,3308.8,3.2078]
[1737017466455,3.2078,3310.1,3309.3,3.2078]
[1737017466749,3.2078,3310.1,3309.8,0.60435]
[1737017466945,3.2078,3310.1,3309.4,2.2456]
[1737017467343,3.2078,3310.1,3309.7,0.60435]
[1737017467546,3.2078,3310.1,3308.8,3.2078]
[1737017467850,2.24843095,3310.6,3308.8,3.2078]
[1737017467851,3.2078,3309.5,3308.8,3.2078]
[1737017468052,3.2078,3309.1,3308.3,3.2078]
[1737017468450,3.81228,3309.1,3308.4,0.60461]
[1737017468754,3.81228,3309.1,3308.3,3.2078]
[1737017468755,0.6045,3309.0,3308.3,3.81241]
[1737017469047,3.2078,3309.1,3308.3,3.2078]
[1737017469253,3.81228,3309.1,3308.4,0.60461]
[1737017469752,3.81228,3309.1,3308.3,3.2078]
[1737017469753,3.2078,3308.7,3308.3,3.2078]
[1737017470950,3.2078,3308.7,3308.4,0.6046]
[1737017471552,3.2078,3308.7,3308.2,0.60464]
[1737017471952,3.2078,3308.7,3308.0,2.93896311]
[1737017472156,3.2078,3308.7,3308.6,0.60457]
[1737017472352,2.24843095,3309.6,3308.0,2.93896311]
[1737017472353,3.2078,3309.1,3308.1,3.2078]
[1737017472657,3.2078,3309.5,3308.5,3.2078]
[1737017472857,3.2078,3309.5,3308.6,3.9816]
[1737017473149,3.2078,3309.5,3309.2,0.60445]
[1737017473547,3.2078,3309.5,3308.6,6.2265]
[1737017473750,3.2078,3309.5,3309.4,0.60442]
[1737017473953,2.24843095,3310.2,3310.0,0.6043]
[1737017474152,2.24843095,3310.2,3309.4,40.8]
[1737017474153,0.60433,3310.0,3309.3,0.60443]
[1737017474361,3.2078,3310.0,3308.9,3.2078]
[1737017474548,3.2078,3309.6,3309.0,0.6045]
[1737017474749,3.2078,3309.6,3309.1,0.60448]
[1737017475157,3.2078,3309.6,3309.0,40.8]
[1737017475354,3.2078,3309.6,3309.1,0.60448]
[1737017475552,3.2078,3309.6,3308.0,2.93896311]
[1737017475858,3.2078,3308.7,3308.0,2.93896311]
[1737017476055,3.2078,3309.3,3308.1,40.8]
[1737017476354,3.2078,3308.9,3308.5,0.60457]
[1737017476665,3.2078,3308.9,3308.1,40.8]
[1737017476869,3.2078,3308.9,3308.5,0.60458]
[1737017477362,3.2078,3308.9,3308.1,40.8]
[1737017477752,3.2078,3309.3,3308.1,40.8]
[1737017477953,3.2078,3309.3,3308.3,3.2078]
[1737017478151,3.2078,3309.3,3308.4,1.51153]
[1737017478656,2.24843095,3309.6,3309.5,0.60441]
[1737017478857,2.24843095,3310.0,3309.1,0.60448]
[1737017479055,2.24843095,3310.0,3309.9,0.60433]
[1737017479959,2.24843095,3310.0,3309.9,2.25033]
[1737017480157,3.38398612,3310.2,3310.1,0.6043]
[1737017480158,2.07409612,3310.2,3310.1,0.6043]
[1737017480348,2.3915,3312.0,3310.3,0.60426]
[1737017480349,5.44874838,3310.7,3310.3,0.60426]
[1737017480553,4.50596149,3311.2,3310.7,0.81103235]
[1737017480753,3.05127491,3311.2,3311.1,3.81191]
[1737017480959,2.34962491,3311.2,3311.1,3.81191]
[1737017481560,9.97577225,3312.0,3311.1,3.81191]
[1737017481561,3.2078,3312.0,3311.9,0.60397]
[1737017482060,3.2078,3312.4,3311.7,1.646]
[1737017482665,3.2078,3312.4,3312.0,0.60395]
[1737017482965,0.6039,3312.3,3311.6,2.25001]
[1737017483161,3.2078,3312.4,3311.9,0.60396]
[1737017483467,3.2078,3312.4,3312.2,0.6039]
[1737017483660,3.2078,3312.4,3311.6,4.8538]
[1737017483963,3.81175,3312.0,3311.3,2.25007]
[1737017484164,3.2078,3312.0,3311.2,4.8538]
[1737017484370,2.3205,3312.3,3310.0,4.8538]
[1737017484371,3.2078,3311.6,3310.0,4.8538]
[1737017484563,3.81182,3311.7,3311.0,0.60412]
[1737017484759,3.2078,3311.1,3310.7,0.60419]
[1737017485063,3.2078,3311.1,3310.0,4.8538]
[1737017485263,3.2078,3310.6,3310.0,3.2078]
[1737017485458,3.2078,3310.6,3310.5,0.60422]
[1737017485761,3.2078,3311.0,3310.9,0.60414]
[1737017485952,7.78317865,3311.9,3311.1,0.60411]
[1737017485953,3.2078,3311.6,3311.1,0.60411]
[1737017486152,3.2078,3311.6,3311.4,0.60405]
[1737017486458,3.2078,3311.6,3310.5,1.612]
[1737017486459,3.2078,3311.6,3311.2,0.60409]
[1737017486653,3.2078,3311.6,3311.3,0.60407]
[1737017487060,3.2078,3311.6,3310.8,40.8]
[1737017487264,3.2078,3311.6,3311.5,0.60404]
[1737017487461,3.2078,3312.0,3311.5,1.612]
[1737017487768,3.2078,3312.4,3311.5,1.57964789]
[1737017488468,3.2078,3312.0,3311.5,0.60403]
[1737017488666,3.2078,3312.0,3311.2,4.8198]
[1737017489062,0.60397,3311.9,3311.2,0.60408]
[1737017489264,3.2078,3311.6,3311.0,2.21612]
[1737017489457,3.2078,3311.6,3311.1,0.6041]
[1737017489764,3.2078,3311.6,3311.0,1.612]
[1737017489958,3.2078,3311.6,3311.4,0.60405]
[1737017490166,3.2078,3311.6,3311.2,0.60408]
[1737017490570,3.2078,3311.6,3311.0,1.612]
[1737017490865,3.2078,3311.6,3310.4,4.71841]
[1737017490866,3.8119,3311.2,3310.5,0.60422]
[1737017491060,3.2078,3311.2,3310.4,3.2078]
[1737017491265,3.2078,3310.5,3309.6,1.612]
[1737017491462,0.60422,3310.6,3309.9,0.60433]
[1737017491664,3.2078,3310.3,3309.7,0.60435]
[1737017491875,3.2078,3309.9,3309.4,3.2078]
[1737017492072,3.2078,3310.3,3309.9,0.60432]
[1737017492272,3.2078,3310.3,3309.4,3.2078]
[1737017492273,3.81207,3310.3,3309.6,0.60437]
[1737017492468,3.2078,3309.7,3309.2,0.60446]
[1737017492773,3.2078,3309.7,3308.9,3.2078]
[1737017493070,3.81218,3309.7,3309.1,0.60447]
[1737017493267,0.60442,3309.5,3308.9,3.81231]
[1737017493467,3.2078,3309.7,3308.9,3.2078]
[1737017493668,0.60439,3309.6,3308.9,3.2078]
[1737017493974,3.81228,3309.1,3308.4,0.60461]
[1737017494171,3.2078,3309.1,3308.8,0.60452]
[1737017494571,3.2078,3309.1,3308.4,40.8]
[1737017494870,3.2078,3309.1,3309.0,0.6045]
[1737017495267,3.2078,3309.1,3309.0,2.2165]
[1737017495468,2.4372,3310.4,3309.0,1.612]
[1737017495469,3.2078,3309.5,3309.0,1.612]
[1737017495769,3.2078,3309.5,3309.4,0.60442]
[1737017495974,3.2078,3310.1,3310.0,0.60432]
[1737017496168,3.2078,3310.1,3309.8,0.60433]
[1737017496368,3.2078,3310.1,3310.0,40.8]
[1737017496671,3.81211,3310.1,3309.5,0.6044]
[1737017496871,3.81211,3310.1,3309.0,1.612]
[1737017497177,2.4372,3310.4,3309.1,40.8]
[1737017497178,3.2078,3309.7,3309.1,40.8]
[1737017497471,3.2078,3309.7,3308.3,4.80583865]
[1737017497472,3.2078,3309.3,3309.2,0.60446]
[1737017497668,3.2078,3309.3,3309.1,0.60448]
[1737017498165,3.2078,3309.3,3308.6,1.612]
[1737017498366,3.2078,3309.3,3308.3,3.2078]
[1737017498569,3.2078,3309.3,3309.2,0.60446]
[1737017498869,3.2078,3309.7,3308.7,3.2078]
[1737017499179,0.6044,3309.6,3309.0,0.60448]
[1737017499471,3.2078,3309.3,3309.2,0.60446]
[1737017499674,3.2078,3309.7,3308.7,3.2078]
[1737017500476,3.2078,3309.5,3309.2,0.60445]
[1737017500774,3.2078,3309.5,3308.9,0.60452]
[1737017500966,3.2078,3309.5,3308.8,0.60452]
[1737017501164,3.2078,3309.5,3309.0,0.6045]
[1737017501372,3.2078,3309.5,3309.4,0.60443]
[1737017501568,3.2078,3309.9,3309.8,0.60435]
[1737017501976,3.2078,3309.9,3308.7,3.2078]
[1737017502272,3.2078,3309.9,3309.3,2.21643]
[1737017502469,3.2078,3309.9,3309.7,0.60437]
[1737017502665,3.2078,3309.9,3309.3,1.612]
[1737017503271,3.2078,3310.3,3309.3,1.612]
[1737017503470,3.2078,3310.3,3310.2,0.60428]
[1737017503774,5.63196194,3311.2,3309.3,1.612]
[1737017503775,3.2078,3310.7,3310.6,0.60421]
[1737017504182,3.2078,3310.7,3310.2,1.612]
[1737017504183,3.2078,3311.3,3310.2,1.612]
[1737017504378,3.2078,3310.9,3310.2,1.612]
[1737017504682,3.2078,3310.9,3310.8,0.60417]
[1737017505978,3.2078,3310.9,3310.3,0.60425]
[1737017506167,3.2078,3310.9,3310.3,0.60426]
[1737017506369,3.81196,3310.9,3309.9,4.8198]
[1737017506570,0.60417,3310.8,3310.2,0.60427]
[1737017506786,3.2078,3310.5,3309.7,1.612]
[1737017506985,3.2078,3309.8,3309.1,3.2078]
[1737017507879,3.2078,3309.8,3309.5,0.60439]
[1737017508077,3.2078,3309.8,3309.7,0.60437]
[1737017508781,3.2078,3310.2,3310.1,0.6043]
[1737017509671,3.2078,3310.2,3310.1,41.4043]
[1737017509983,3.2078,3310.2,3310.1,0.6043]
[1737017510673,3.2078,3310.6,3310.0,0.60432]
[1737017510872,3.2078,3310.6,3309.9,1.612]
[1737017511074,3.2078,3310.2,3309.8,1.612]
[1737017511277,3.2078,3310.2,3309.5,1.612]
[1737017511478,3.2078,3310.2,3309.8,0.60434]
[1737017511878,3.2078,3310.2,3309.5,1.612]
[1737017511879,3.81209,3310.2,3309.6,0.60437]
[1737017512085,3.2078,3309.8,3309.7,0.60437]
[1737017512385,3.2078,3309.8,3309.5,1.612]
[1737017512586,3.2078,3309.8,3309.7,0.60437]
[1737017513779,3.2078,3310.2,3310.1,0.6043]
[1737017513977,3.2078,3310.6,3310.5,0.60422]
[1737017514682,3.2078,3310.6,3310.5,41.40422]
[1737017515483,3.2078,3311.1,3310.5,40.8]
[1737017515687,3.2078,3311.1,3311.0,0.60413]
[1737017515888,4.50887504,3311.9,3311.0,1.565]
[1737017516184,4.50887504,3311.9,3311.8,0.60399]
[1737017517173,3.2078,3312.1,3311.7,0.604]
[1737017517376,0.60407,3311.4,3310.9,0.60414]
[1737017517585,3.2078,3311.0,3310.9,0.60414]
[1737017517784,3.2078,3311.0,3310.9,0.60415]
[1737017518379,3.2078,3311.6,3310.6,4.7728]
[1737017518686,3.2078,3311.6,3311.5,0.60404]
[1737017518878,3.2078,3311.6,3310.7,2.437]
[1737017519074,3.2078,3311.6,3311.3,0.60408]
[1737017519277,3.2078,3311.6,3310.7,2.437]
[1737017519278,3.2078,3311.6,3311.2,0.60409]
[1737017519582,0.60411,3311.2,3310.7,0.60418]
[1737017519787,3.2078,3310.8,3309.8,3.2078]
[1737017519974,3.81198,3310.8,3310.3,0.60425]
[1737017520174,3.2078,3310.8,3310.4,0.60423]
[1737017520487,0.60427,3310.3,3309.8,0.60434]
[1737017520680,3.2078,3309.9,3309.6,0.60437]
[1737017520878,0.60436,3309.8,3309.3,0.60443]
[1737017521085,3.2078,3309.4,3309.0,0.60449]
[1737017521286,3.2078,3309.4,3308.5,4.7728]
[1737017521583,3.2078,3309.5,3309.0,0.60449]
[1737017521784,3.2078,3309.1,3308.5,4.7728]
[1737017521983,3.2078,3309.1,3308.5,3.2078]
[1737017522187,3.2078,3309.1,3308.5,4.7728]
[1737017522377,3.2078,3309.1,3309.0,0.6045]
[1737017522782,3.2078,3309.1,3308.6,0.60457]
[1737017522978,3.2078,3309.1,3308.7,0.60454]
[1737017523179,3.2078,3309.1,3308.6,0.60457]
[1737017523485,3.2078,3308.7,3308.4,2.1696]
[1737017523885,3.2078,3308.7,3308.5,0.60459]
[1737017524383,3.2078,3308.7,3308.6,0.60457]
[1737017524587,3.2078,3308.7,3308.6,41.40457]
[1737017524889,3.2078,3309.1,3308.7,0.60454]
[1737017525091,3.2078,3309.1,3308.6,40.8]
[1737017525391,3.2078,3309.1,3309.0,0.6045]
[1737017525792,4.50887504,3309.9,3309.8,0.60435]
[1737017525990,7.71667504,3310.2,3310.1,0.6043]
[1737017526385,4.50887504,3310.2,3310.1,49.6121]
[1737017526692,3.85905504,3310.2,3310.1,49.6121]
[1737017526882,5.63595501,3310.4,3310.3,0.60426]
[1737017527085,3.2078,3311.4,3310.3,3.29427865]
[1737017527292,3.2078,3311.8,3311.5,0.60403]
[1737017527588,3.2078,3311.8,3311.5,40.8]
[1737017527887,3.2078,3311.7,3311.5,40.8]
[1737017528393,3.2078,3311.7,3310.5,1.565]
[1737017528394,0.60409,3311.3,3310.5,1.565]
[1737017528596,3.2078,3311.0,3310.1,3.2078]
[1737017528781,3.2078,3311.0,3310.6,0.60419]
[1737017528988,3.2078,3311.0,3310.5,1.565]
[1737017529287,3.2078,3311.0,3310.9,0.60415]
[1737017529690,3.2078,3311.6,3311.5,0.60404]
[1737017529881,3.2078,3312.0,3311.3,1.565]
[1737017530081,3.2078,3312.0,3311.9,0.60397]
[1737017530282,3.2078,3312.0,3311.3,1.565]
[1737017530688,3.2078,3312.0,3311.6,0.60401]
[1737017530887,3.2078,3312.0,3311.3,1.565]
[1737017531196,3.2078,3312.0,3311.9,0.60397]
[1737017531692,3.2078,3312.0,3311.4,1.565]
[1737017531882,3.2078,3312.0,3311.0,3.2078]
[1737017532193,3.2078,3312.0,3311.9,0.60397]
[1737017532395,3.2078,3312.7,3311.9,1.565]
[1737017532592,3.2078,3312.7,3312.5,0.60386]
[1737017532800,3.2078,3312.7,3311.9,1.565]
[1737017533094,3.2078,3312.7,3301.1,1.43554303]
[1737017533095,3.2078,3312.3,3311.5,1.565]
[1737017533394,3.2078,3311.8,3310.5,3.2078]
[1737017533591,3.2078,3311.3,3310.5,3.2078]
[1737017533786,3.2078,3311.3,3310.6,0.60421]
[1737017533995,3.2078,3311.3,3310.5,3.2078]
[1737017534395,3.2078,3311.3,3310.4,1.565]
[1737017534586,3.2078,3311.3,3311.0,0.60412]
[1737017534791,3.2078,3311.3,3310.9,0.60415]
[1737017534993,3.2078,3311.3,3310.4,1.565]
[1737017535492,3.2078,3311.3,3311.0,0.60412]
[1737017535797,3.2078,3311.3,3310.4,1.565]
[1737017535996,3.2078,3310.9,3310.1,42.365]
[1737017536192,3.2078,3310.5,3310.2,0.60428]
[1737017536490,0.059306,3310.4,3308.7,5.98440296]
[1737017536698,3.2078,3309.8,3308.8,45.51234161]
[1737017536898,3.2078,3309.8,3309.6,0.60438]
[1737017537091,3.2078,3309.8,3308.8,45.51234161]
[1737017537296,3.2078,3309.8,3309.5,0.6044]
[1737017537594,3.2078,3309.8,3309.4,1.565]
[1737017538000,3.2078,3309.8,3309.4,2.16942]
[1737017538394,3.2078,3309.8,3308.6,5.6509]
[1737017538598,3.2078,3308.9,3308.7,0.60455]
[1737017538792,3.2078,3308.9,3307.8,10.879]
[1737017538992,3.2078,3308.5,3308.4,0.60461]
[1737017539299,3.2078,3308.9,3308.2,0.60464]
[1737017539597,3.2078,3308.5,3308.3,0.60462]
[1737017540092,3.2078,3308.5,3308.1,42.365]
[1737017540093,3.2078,3308.5,3308.4,0.60461]
[1737017541093,3.2078,3308.5,3308.3,0.60463]
[1737017541401,3.2078,3308.5,3308.4,1.565]
[1737017541595,3.2078,3308.5,3308.4,2.16961]
[1737017541792,3.2078,3308.5,3308.4,1.565]
[1737017542495,3.2078,3308.5,3308.1,40.8]
[1737017542695,3.8124,3308.5,3308.0,2.93896311]
[1737017542892,3.2078,3308.5,3308.0,2.93896311]
[1737017543194,3.2078,3308.5,3308.0,43.73896311]
[1737017543392,3.2078,3308.5,3308.0,44.34363311]
[1737017543594,2.4477,3308.4,3308.0,2.93896311]
[1737017543794,3.2078,3308.1,3308.0,2.93896311]
[1737017545201,3.81246,3308.1,3308.0,2.93896311]
[1737017545497,0.6047,3308.0,3307.3,0.60479]
[1737017545702,3.2078,3307.6,3307.2,3.81262]
[1737017545899,3.2078,3307.6,3307.5,0.60477]
[1737017546103,3.2078,3307.6,3307.2,45.5368]
[1737017546401,3.29427865,3307.4,3305.6,4.71234161]
[1737017546595,3.2078,3306.1,3305.6,5.31746161]
[1737017546903,3.2078,3306.1,3305.9,0.60505]
[1737017547102,3.2078,3306.1,3305.6,47.04134161]
[1737017547296,3.2078,3306.1,3305.6,45.51234161]
[1737017547498,3.2078,3306.1,3305.7,0.6051]
[1737017547693,3.2078,3306.5,3305.6,45.51234161]
[1737017547906,5.6468,3307.2,3306.1,0.60503]
[1737017548094,5.6468,3307.2,3306.6,0.60492]
[1737017548401,3.2078,3306.8,3306.3,0.60498]
[1737017548601,3.2078,3306.8,3306.4,0.60497]
[1737017548804,2.90531143,3306.8,3306.2,1.529]
[1737017549003,2.90531143,3306.8,3306.6,0.60492]
[1737017549205,2.90531143,3306.8,3306.7,0.60492]
[1737017549501,2.90531143,3306.8,3306.5,0.60494]
[1737017549699,2.60282286,3306.8,3305.8,3.2078]
[1737017549900,2.60282286,3306.8,3305.9,42.33]
[1737017550094,2.60282286,3306.8,3306.7,0.60492]
[1737017550297,2.60282286,3306.8,3305.9,1.53]
[1737017550500,2.60282286,3306.8,3306.6,0.60492]
[1737017550704,2.30033429,3306.8,3306.6,0.60492]
[1737017551199,2.30033429,3306.8,3306.7,0.60492]
[1737017551698,3.2078,3307.2,3306.2,3.2078]
[1737017551912,3.2078,3307.2,3307.0,0.60485]
[1737017552107,3.2078,3307.2,3306.2,3.2078]
[1737017552403,3.2078,3307.2,3306.6,0.60494]
[1737017552598,3.2078,3307.2,3307.1,0.60485]
[1737017552996,3.2078,3307.2,3306.4,3.2078]
[1737017553391,3.2078,3307.2,3307.1,0.60485]
[1737017553593,2.3412,3307.5,3307.4,0.60479]
[1737017553793,2.3412,3307.5,3306.8,1.53]
[1737017553794,3.2078,3307.7,3306.8,4.7378]
[1737017554005,3.2078,3307.7,3306.9,0.60488]
[1737017554206,3.2078,3307.7,3307.4,0.60478]
[1737017554505,3.2078,3307.7,3306.9,40.8]
[1737017554705,3.2078,3307.1,3307.0,0.60486]
[1737017555105,3.2078,3307.1,3306.9,40.8]
[1737017555302,3.2078,3307.1,3306.8,0.60489]
[1737017555502,3.2078,3307.1,3306.7,1.53]
[1737017557206,3.2078,3307.1,3306.9,0.60488]
[1737017557500,3.2078,3307.1,3307.0,0.60486]
[1737017557706,3.2078,3307.1,3306.7,1.53]
[1737017557909,3.2078,3307.1,3306.8,0.6049]
[1737017558099,3.2078,3307.1,3306.7,1.53]
[1737017558300,3.2078,3307.1,3306.0,40.8]
[1737017558506,3.2078,3307.1,3306.9,0.60488]
[1737017558809,3.2078,3307.1,3306.1,1.53]
[1737017559206,3.2078,3307.1,3307.0,0.60486]
[1737017561308,3.2078,3307.5,3307.4,0.60479]
[1737017561806,3.2078,3307.5,3306.9,1.53]
[1737017562013,3.2078,3307.5,3307.2,0.60483]
[1737017562310,3.2078,3307.5,3306.4,40.8]
[1737017562509,3.2078,3307.5,3307.4,0.60479]
[1737017562810,3.2078,3307.5,3306.6,1.51235]
[1737017563311,3.2078,3307.1,3306.4,40.8]
[1737017563511,3.2078,3307.1,3307.0,0.60486]
[1737017564202,3.2078,3307.1,3306.8,0.60489]
[1737017564708,3.2078,3307.1,3306.9,0.60487]
[1737017564909,3.2078,3307.1,3307.0,0.60486]
[1737017565108,3.2078,3307.1,3306.3,4.7378]
[1737017565308,0.60494,3306.6,3306.0,0.60504]
[1737017565506,3.81273,3306.7,3306.2,0.60501]
[1737017565813,0.60494,3306.6,3306.1,0.60501]
[1737017566016,3.2078,3306.7,3306.0,0.60505]
[1737017566210,3.2078,3306.7,3305.9,3.2078]
[1737017566407,3.2078,3306.3,3305.4,44.0078]
[1737017566713,3.2078,3306.3,3306.1,0.60502]
[1737017567108,3.2078,3306.3,3305.8,1.53]
[1737017567409,3.20498972,3306.3,3305.4,44.0078]
[1737017567608,3.2078,3305.9,3305.6,0.60512]
[1737017567810,3.2078,3305.9,3304.9,7.0957]
[1737017568011,3.2078,3305.9,3305.0,41.40523]
[1737017568212,3.29427865,3305.8,3304.9,7.0957]
[1737017568411,3.29427865,3305.8,3304.3,1.98781264]
[1737017568412,0.60516,3305.4,3304.8,0.60525]
[1737017568714,3.81294,3305.5,3304.9,0.60525]
[1737017568915,3.2078,3305.5,3304.8,40.8]
[1737017569116,0.60516,3305.4,3304.9,0.60525]
[1737017569308,3.2078,3305.5,3304.6,1.53]
[1737017569506,0.60516,3305.4,3305.0,0.60523]
[1737017570109,0.60516,3305.4,3305.1,0.60521]
[1737017570309,0.60519,3305.3,3304.9,0.60525]
[1737017570509,3.2078,3305.1,3304.6,0.6053]
[1737017570710,3.2078,3305.1,3304.5,4.7388]
[1737017570915,3.2078,3305.6,3304.5,3.2078]
[1737017571116,3.2078,3305.6,3305.5,0.60512]
[1737017571505,3.2078,3306.1,3306.0,0.60505]
[1737017571811,3.2078,3306.1,3305.5,1.531]
[1737017572020,3.2078,3306.1,3305.0,7.0409]
[1737017572319,0.60507,3305.9,3305.5,0.60512]
[1737017572717,3.2078,3306.1,3305.9,0.60506]
[1737017572918,3.81283,3306.1,3305.7,0.60509]
[1737017573218,3.2078,3306.1,3305.0,3.2078]
[1737017573620,3.81284,3306.1,3305.7,0.6051]
[1737017573915,0.60505,3306.0,3305.6,0.60511]
[1737017574122,0.60505,3306.0,3305.0,3.2078]
[1737017574423,3.2078,3305.5,3304.9,1.531]
[1737017574610,3.2078,3305.5,3305.2,0.60518]
[1737017574813,3.2078,3305.5,3305.3,0.60516]
[1737017575212,3.2078,3305.5,3304.9,1.531]
[1737017575410,3.2078,3305.5,3305.0,0.60523]
[1737017575614,3.2078,3305.5,3305.3,0.60516]
[1737017575814,3.2078,3305.5,3305.0,40.8]
[1737017576021,3.2078,3305.5,3305.3,0.60517]
[1737017576214,3.81296,3305.5,3305.0,0.60523]
[1737017576415,3.81295,3305.5,3304.8,0.60527]
[1737017576618,3.81295,3305.5,3304.7,4.7208]
[1737017576820,3.2078,3305.5,3305.0,0.60522]
[1737017577014,3.2078,3305.5,3304.8,41.40526]
[1737017577209,2.4148,3305.7,3304.3,3.81315]
[1737017577210,0.60523,3305.0,3304.3,3.81315]